Workbook

Sheet 元データ
A1: 4 | B1: 年 | C1: 1 | D1: 2 | E1: 3 | F1: 4 | G1: 5 | H1: 6 | I1: 7 | J1: 8 | K1: 9 | L1: 10 | M1: 11 | N1: 12
A2: 組 | B2: 番 | C2: 組番 | D2: 氏名 | E2: 性別 | F2: ふりがな | G2: 住所 | H2: googleMap | I2: 電話番号
A3: 1 | B3: 1 | C3: =IF(B3="","",A3*100+B3) -> 101 | D3: 安藤 ひろし | E3: 男 | F3: =PHONETIC(D3) -> アンドウ ヒロシ | H3: =HYPERLINK("http://maps.google.co.jp/maps/place/"&G3,"Map") -> Map
A4: 1 | B4: 2 | C4: =IF(B4="","",A4*100+B4) -> 102 | D4: 伊波 かなこ | E4: 女 | F4: =PHONETIC(D4) -> イハ カナコ | H4: =HYPERLINK("http://maps.google.co.jp/maps/place/"&G4,"Map") -> Map
A5: 1 | B5: 3 | C5: 103 | D5: 上島 ひでこ | E5: 女 | F5: ウエジマ ヒデコ | H5: Map
A6: 1 | B6: 4 | C6: 104 | D6: 小川 ももこ | E6: 女 | F6: オガワ モモコ | H6: Map
A7: 1 | B7: 5 | C7: 105 | D7: 加藤 りさこ | E7: 女 | F7: カトウ リサコ | H7: Map
A8: 1 | B8: 6 | C8: 106 | D8: 金子 ちから | E8: 男 | F8: カネコ チカラ | H8: Map
A9: 1 | B9: 7 | C9: 107 | D9: 木田 ゆうじ | E9: 男 | F9: キダ ユウジ | H9: Map
A10: 1 | B10: 8 | C10: 108 | D10: 木村 たけこ | E10: 女 | F10: キムラ タケコ | H10: Map
A11: 1 | B11: 9 | C11: 109 | D11: 工藤 はなこ | E11: 女 | F11: クドウ ハナコ | H11: Map
A12: 1 | B12: 10 | C12: 110 | D12: 煙巻 そのこ | E12: 女 | F12: ケムマ ソノコ | H12: Map
A13: 1 | B13: 11 | C13: 111 | D13: 近藤 ゆいこ | E13: 女 | F13: コンドウ ユイコ | H13: Map
A14: 1 | B14: 12 | C14: 112 | D14: 佐藤 はると | E14: 男 | F14: サトウ ハルト | H14: Map
A15: 1 | B15: 13 | C15: 113 | D15: 重永 ともこ | E15: 女 | F15: シゲナガ トモコ | H15: Map
A16: 1 | B16: 14 | C16: 114 | D16: 須藤 はやと | E16: 男 | F16: スドウ ハヤト | H16: Map
A17: 1 | B17: 15 | C17: 115 | D17: 白石 りきと | E17: 男 | F17: シライシ リキト | H17: Map
A18: 1 | B18: 16 | C18: 116 | D18: 竹内 さちこ | E18: 女 | F18: タケウチ サチコ | H18: Map
A19: 1 | B19: 17 | C19: 117 | D19: 田中 ゆめこ | E19: 女 | F19: タナカ ユメコ | H19: Map
A20: 1 | B20: 18 | C20: 118 | D20: 土田 かおる | E20: 女 | F20: ツチダ カオル | H20: Map
A21: 1 | B21: 19 | C21: 119 | D21: 中村 かおり | E21: 男 | F21: ナカムラ カオリ | H21: Map
A22: 1 | B22: 20 | C22: 120 | D22: 新沼 けんた | E22: 男 | F22: ニイヌマ ケンタ | H22: Map
A23: 1 | B23: 21 | C23: 121 | D23: 野口 ゆい | E23: 女 | F23: ノグチ ユイ | H23: Map
A24: 1 | B24: 22 | C24: 122 | D24: 林 そのこ | E24: 女 | F24: ハヤシ ソノコ | H24: =HYPERLINK("http://maps.google.co.jp/maps/place/"&G24,"Map") -> Map
A25: 1 | B25: 23 | C25: 123 | D25: 平山 あゆ | E25: 女 | F25: ヒラヤマ アユ | H25: Map
A26: 1 | B26: 24 | C26: 124 | D26: 藤木 ゆい | E26: 女 | F26: フジキ ユイ | H26: =HYPERLINK("http://maps.google.co.jp/maps/place/"&G27,"Map") -> Map
A27: 1 | B27: 25 | C27: 125 | D27: 本庄 さとる | E27: 男 | F27: ホンジョウ サトル | H27: Map
A28: 1 | B28: 26 | C28: 126 | D28: 松永 とおる | E28: 男 | F28: マツナガ トオル | H28: Map
A29: 1 | B29: 27 | C29: 127 | D29: 三島 けいこ | E29: 女 | F29: ミシマ ケイコ | H29: Map
A30: 1 | B30: 28 | C30: 128 | D30: 武藤 かい | E30: 男 | F30: ムトウ カイ | H30: Map
A31: 1 | B31: 29 | C31: 129 | D31: 目下 あおい | E31: 女 | F31: メシタ アオイ | H31: Map
A32: 1 | B32: 30 | C32: 130 | D32: 山下 かい | E32: 男 | F32: ヤマシタ カイ | H32: Map
H33: Map
H34: Map
H35: Map
H36: Map
H37: Map
H38: Map
H39: Map
H40: Map
H41: Map
H42: Map
H43: Map
H44: Map
H45: Map
H46: Map
H47: Map
A48: 2 | B48: 1 | C48: 201
A49: 2 | B49: 2 | C49: 202
A50: 2 | B50: 3 | C50: 203
A51: 2 | B51: 4 | C51: 204
A52: 2 | B52: 5 | C52: 205
A53: 2 | B53: 6 | C53: 206
A54: 2 | B54: 7 | C54: 207
A55: 2 | B55: 8 | C55: 208
A56: 2 | B56: 9 | C56: 209
A57: 2 | B57: 10 | C57: 210
A58: 2 | B58: 11 | C58: 211
A59: 2 | B59: 12 | C59: 212
A60: 2 | B60: 13 | C60: 213
A61: 2 | B61: 14 | C61: 214
A62: 2 | B62: 15 | C62: 215
A63: 2 | B63: 16 | C63: 216
A64: 2 | B64: 17 | C64: 217
A65: 2 | B65: 18 | C65: 218
A66: 2 | B66: 19 | C66: 219
A67: 2 | B67: 20 | C67: 220
A68: 2 | B68: 21 | C68: =IF(B68="","",A68*100+B68) -> 221
A69: 2 | B69: 22 | C69: 222
A70: 2 | B70: 23 | C70: 223
A71: 2 | B71: 24 | C71: 224
A72: 2 | B72: 25 | C72: 225
A73: 2 | B73: 26 | C73: 226
A74: 2 | B74: 27 | C74: 227
A75: 2 | B75: 28 | C75: 228
A76: 2 | B76: 29 | C76: 229
A77: 2 | B77: 30 | C77: 230
A78: 2 | B78: 31 | C78: 231
A79: 2 | B79: 32 | C79: 232
A80: 2 | B80: 33 | C80: 233
A81: 2 | B81: 34 | C81: 234
A82: 2 | B82: 35 | C82: 235
A83: 2 | B83: 36 | C83: 236
A84: 2 | B84: 37 | C84: 237
A85: 2 | B85: 38 | C85: 238
A86: 2 | B86: 39 | C86: 239
A87: 2 | B87: 40 | C87: 240
A93: 3 | B93: 1 | C93: 301
A94: 3 | B94: 2 | C94: 302
A95: 3 | B95: 3 | C95: 303
A96: 3 | B96: 4 | C96: 304
A97: 3 | B97: 5 | C97: 305
A98: 3 | B98: 6 | C98: 306
A99: 3 | B99: 7 | C99: 307
A100: 3 | B100: 8 | C100: 308
A101: 3 | B101: 9 | C101: 309
A102: 3 | B102: 10 | C102: 310
A103: 3 | B103: 11 | C103: 311
A104: 3 | B104: 12 | C104: 312
A105: 3 | B105: 13 | C105: 313
A106: 3 | B106: 14 | C106: 314
A107: 3 | B107: 15 | C107: 315
A108: 3 | B108: 16 | C108: 316
A109: 3 | B109: 17 | C109: 317
A110: 3 | B110: 18 | C110: 318
A111: 3 | B111: 19 | C111: 319
A112: 3 | B112: 20 | C112: 320
A113: 3 | B113: 21 | C113: 321
A114: 3 | B114: 22 | C114: 322
A115: 3 | B115: 23 | C115: 323
A116: 3 | B116: 24 | C116: 324
A117: 3 | B117: 25 | C117: 325
A118: 3 | B118: 26 | C118: 326
A119: 3 | B119: 27 | C119: 327
A120: 3 | B120: 28 | C120: 328
A121: 3 | B121: 29 | C121: 329
A122: 3 | B122: 30 | C122: 330
A123: 3 | B123: 31 | C123: 331
A124: 3 | B124: 32 | C124: 332
A125: 3 | B125: 33 | C125: 333
A126: 3 | B126: 34 | C126: 334
A127: 3 | B127: 35 | C127: 335
A128: 3 | B128: 36 | C128: 336
A129: 3 | B129: 37 | C129: 337
A130: 3 | B130: 38 | C130: 338
A131: 3 | B131: 39 | C131: 339
A132: 3 | B132: 40 | C132: =IF(B132="","",A132*100+B132) -> 340

Sheet 家庭訪問表
B1: ="家庭訪問 予定表 "&B2&"組" -> 家庭訪問 予定表 1組
B2: 1 | C2: 組
I3: =IF(I29="","",I29) ->  | K3: =IF(K29="","",K29) ->  | M3: =IF(M29="","",M29) ->  | O3: =IF(O29="","",O29) ->  | Q3: =IF(Q29="","",Q29) ->  | S3: =IF(S29="","",S29) -> 
C5: =IF(C31="","",C31) -> 02:00:00 | E5: ～ | F5: =F31 -> 02:15:00 | I5: =IF(I32="","",VLOOKUP(I32,all,2,FALSE)) -> 安藤 ひろし | K5: =IF(K32="","",VLOOKUP(K32,all,2,FALSE)) -> 伊波 かなこ | M5: =IF(M32="","",VLOOKUP(M32,all,2,FALSE)) -> 上島 ひでこ | O5: =IF(O32="","",VLOOKUP(O32,all,2,FALSE)) -> 小川 ももこ | Q5: =IF(Q32="","",VLOOKUP(Q32,all,2,FALSE)) -> 加藤 りさこ | S5: =IF(S32="","",VLOOKUP(S32,all,2,FALSE)) -> 金子 ちから
C7: =F5 -> 02:15:00 | E7: ～ | F7: =F34 -> 02:30:00 | I7: =IF(I34="","",VLOOKUP(I35,all,2,FALSE)) -> 木田 ゆうじ | K7: =IF(K35="","",VLOOKUP(K35,all,2,FALSE)) -> 木村 たけこ | M7: =IF(M35="","",VLOOKUP(M35,all,2,FALSE)) -> 工藤 はなこ | O7: =IF(O35="","",VLOOKUP(O35,all,2,FALSE)) -> 煙巻 そのこ | Q7: =IF(Q35="","",VLOOKUP(Q35,all,2,FALSE)) -> 近藤 ゆいこ | S7: =IF(S35="","",VLOOKUP(S35,all,2,FALSE)) -> 
C9: =F7 -> 02:30:00 | E9: ～ | F9: =F37 -> 02:45:00 | I9: =IF(I38="","",VLOOKUP(I38,all,2,FALSE)) -> 佐藤 はると | K9: =IF(K38="","",VLOOKUP(K38,all,2,FALSE)) -> 重永 ともこ | M9: =IF(M38="","",VLOOKUP(M38,all,2,FALSE)) -> 須藤 はやと | O9: =IF(O38="","",VLOOKUP(O38,all,2,FALSE)) -> 白石 りきと | Q9: =IF(Q38="","",VLOOKUP(Q38,all,2,FALSE)) -> 竹内 さちこ | S9: =IF(S38="","",VLOOKUP(S38,all,2,FALSE)) -> 田中 ゆめこ
C11: =F9 -> 02:45:00 | E11: ～ | F11: =F40 -> 03:00:00 | I11: =IF(I41="","",VLOOKUP(I41,all,2,FALSE)) -> 土田 かおる | K11: =IF(K41="","",VLOOKUP(K41,all,2,FALSE)) -> 中村 かおり | M11: =IF(M41="","",VLOOKUP(M41,all,2,FALSE)) -> 新沼 けんた | O11: =IF(O41="","",VLOOKUP(O41,all,2,FALSE)) -> 野口 ゆい | Q11: =IF(Q41="","",VLOOKUP(Q41,all,2,FALSE)) -> 林 そのこ | S11: =IF(S41="","",VLOOKUP(S41,all,2,FALSE)) -> 平山 あゆ
C13: =F11 -> 03:00:00 | E13: ～ | F13: =F43 -> 03:15:00 | I13: =IF(I44="","",VLOOKUP(I44,all,2,FALSE)) ->  | K13: =IF(K44="","",VLOOKUP(K44,all,2,FALSE)) ->  | M13: =IF(M44="","",VLOOKUP(M44,all,2,FALSE)) ->  | O13: =IF(O44="","",VLOOKUP(O44,all,2,FALSE)) ->  | Q13: =IF(Q44="","",VLOOKUP(Q44,all,2,FALSE)) ->  | S13: =IF(S44="","",VLOOKUP(S44,all,2,FALSE)) -> 
C15: =F13 -> 03:15:00 | E15: ～ | F15: =F46 -> 03:30:00 | I15: =IF(I47="","",VLOOKUP(I47,all,2,FALSE)) ->  | K15: =IF(K47="","",VLOOKUP(K47,all,2,FALSE)) ->  | M15: =IF(M47="","",VLOOKUP(M47,all,2,FALSE)) ->  | O15: =IF(O47="","",VLOOKUP(O47,all,2,FALSE)) ->  | Q15: =IF(Q47="","",VLOOKUP(Q47,all,2,FALSE)) ->  | S15: =IF(S47="","",VLOOKUP(S47,all,2,FALSE)) -> 
C17: =F15 -> 03:30:00 | E17: ～ | F17: =F49 -> 03:45:00 | I17: =IF(I50="","",VLOOKUP(I50,all,2,FALSE)) ->  | K17: =IF(K50="","",VLOOKUP(K50,all,2,FALSE)) ->  | M17: =IF(M50="","",VLOOKUP(M50,all,2,FALSE)) ->  | O17: =IF(O50="","",VLOOKUP(O50,all,2,FALSE)) ->  | Q17: =IF(Q50="","",VLOOKUP(Q50,all,2,FALSE)) ->  | S17: =IF(S50="","",VLOOKUP(S50,all,2,FALSE)) -> 
C19: =F17 -> 03:45:00 | E19: ～ | F19: =F52 -> 04:00:00 | I19: =IF(I53="","",VLOOKUP(I53,all,2,FALSE)) ->  | K19: =IF(K53="","",VLOOKUP(K53,all,2,FALSE)) ->  | M19: =IF(M53="","",VLOOKUP(M53,all,2,FALSE)) ->  | O19: =IF(O53="","",VLOOKUP(O53,all,2,FALSE)) ->  | Q19: =IF(Q53="","",VLOOKUP(Q53,all,2,FALSE)) ->  | S19: =IF(S53="","",VLOOKUP(S53,all,2,FALSE)) -> 
C21: =F19 -> 04:00:00 | E21: ～ | F21: =F55 -> 04:15:00 | I21: =IF(I56="","",VLOOKUP(I56,all,2,FALSE)) ->  | K21: =IF(K56="","",VLOOKUP(K56,all,2,FALSE)) ->  | M21: =IF(M56="","",VLOOKUP(M56,all,2,FALSE)) ->  | O21: =IF(O56="","",VLOOKUP(O56,all,2,FALSE)) ->  | Q21: =IF(Q56="","",VLOOKUP(Q56,all,2,FALSE)) ->  | S21: =IF(S56="","",VLOOKUP(S56,all,2,FALSE)) -> 
C23: =F21 -> 04:15:00 | E23: ～ | F23: =F58 -> 04:30:00 | I23: =IF(I59="","",VLOOKUP(I59,all,2,FALSE)) ->  | K23: =IF(K59="","",VLOOKUP(K59,all,2,FALSE)) ->  | M23: =IF(M59="","",VLOOKUP(M59,all,2,FALSE)) ->  | O23: =IF(O59="","",VLOOKUP(O59,all,2,FALSE)) ->  | Q23: =IF(Q59="","",VLOOKUP(Q59,all,2,FALSE)) ->  | S23: =IF(S59="","",VLOOKUP(S59,all,2,FALSE)) -> 
C25: =F23 -> 04:30:00 | E25: ～ | F25: =F61 -> 04:45:00 | I25: =IF(I61="","",VLOOKUP(I61,all,2,FALSE)) ->  | K25: =IF(K61="","",VLOOKUP(K61,all,2,FALSE)) ->  | M25: =IF(M61="","",VLOOKUP(M61,all,2,FALSE)) ->  | O25: =IF(O61="","",VLOOKUP(O61,all,2,FALSE)) ->  | Q25: =IF(Q61="","",VLOOKUP(Q61,all,2,FALSE)) ->  | S25: =IF(S61="","",VLOOKUP(S61,all,2,FALSE)) -> 
C27: =F25 -> 04:45:00 | E27: ～ | F27: =F64 -> 05:00:00 | I27: =IF(I63="","",VLOOKUP(I63,all,2,FALSE)) ->  | K27: =IF(K63="","",VLOOKUP(K63,all,2,FALSE)) ->  | M27: =IF(M63="","",VLOOKUP(M63,all,2,FALSE)) ->  | O27: =IF(O63="","",VLOOKUP(O63,all,2,FALSE)) ->  | Q27: =IF(Q63="","",VLOOKUP(Q63,all,2,FALSE)) ->  | S27: =IF(S63="","",VLOOKUP(S63,all,2,FALSE)) -> 
C31: 02:00:00 | E31: ～ | F31: =IF(C31="","",C31+TIME(0,15,0)) -> 02:15:00 | I31: 1 | K31: 2 | M31: 3 | O31: 4 | Q31: 5 | S31: 6
I32: =IF(I31="","",$B$2*100+I31) -> 101 | K32: =IF(K31="","",$B$2*100+K31) -> 102 | M32: =IF(M31="","",$B$2*100+M31) -> 103 | O32: =IF(O31="","",$B$2*100+O31) -> 104 | Q32: =IF(Q31="","",$B$2*100+Q31) -> 105 | S32: =IF(S31="","",$B$2*100+S31) -> 106
C34: =F31 -> 02:15:00 | E34: ～ | F34: =IF(C34="","",C34+TIME(0,15,0)) -> 02:30:00 | I34: 7 | K34: 8 | M34: 9 | O34: 10 | Q34: 11
I35: =IF(I34="","",$B$2*100+I34) -> 107 | K35: =IF(K34="","",$B$2*100+K34) -> 108 | M35: =IF(M34="","",$B$2*100+M34) -> 109 | O35: =IF(O34="","",$B$2*100+O34) -> 110 | Q35: =IF(Q34="","",$B$2*100+Q34) -> 111 | S35: =IF(S34="","",$B$2*100+S34) -> 
C37: =F34 -> 02:30:00 | E37: ～ | F37: =IF(C37="","",C37+TIME(0,15,0)) -> 02:45:00 | I37: 12 | K37: 13 | M37: 14 | O37: 15 | Q37: 16 | S37: 17
I38: =IF(I37="","",$B$2*100+I37) -> 112 | K38: =IF(K37="","",$B$2*100+K37) -> 113 | M38: =IF(M37="","",$B$2*100+M37) -> 114 | O38: =IF(O37="","",$B$2*100+O37) -> 115 | Q38: =IF(Q37="","",$B$2*100+Q37) -> 116 | S38: =IF(S37="","",$B$2*100+S37) -> 117
C40: =F37 -> 02:45:00 | E40: ～ | F40: =IF(C40="","",C40+TIME(0,15,0)) -> 03:00:00 | I40: 18 | K40: 19 | M40: 20 | O40: 21 | Q40: 22 | S40: 23
I41: =IF(I40="","",$B$2*100+I40) -> 118 | K41: =IF(K40="","",$B$2*100+K40) -> 119 | M41: =IF(M40="","",$B$2*100+M40) -> 120 | O41: =IF(O40="","",$B$2*100+O40) -> 121 | Q41: =IF(Q40="","",$B$2*100+Q40) -> 122 | S41: =IF(S40="","",$B$2*100+S40) -> 123
C43: =F40 -> 03:00:00 | E43: ～ | F43: =IF(C43="","",C43+TIME(0,15,0)) -> 03:15:00
I44: =IF(I43="","",$B$2*100+I43) ->  | K44: =IF(K43="","",$B$2*100+K43) ->  | M44: =IF(M43="","",$B$2*100+M43) ->  | O44: =IF(O43="","",$B$2*100+O43) ->  | Q44: =IF(Q43="","",$B$2*100+Q43) ->  | S44: =IF(S43="","",$B$2*100+S43) -> 
C46: =F43 -> 03:15:00 | E46: ～ | F46: =IF(C46="","",C46+TIME(0,15,0)) -> 03:30:00
I47: =IF(I46="","",$B$2*100+I46) ->  | K47: =IF(K46="","",$B$2*100+K46) ->  | M47: =IF(M46="","",$B$2*100+M46) ->  | O47: =IF(O46="","",$B$2*100+O46) ->  | Q47: =IF(Q46="","",$B$2*100+Q46) ->  | S47: =IF(S46="","",$B$2*100+S46) -> 
C49: =F46 -> 03:30:00 | E49: ～ | F49: =IF(C49="","",C49+TIME(0,15,0)) -> 03:45:00
I50: =IF(I49="","",$B$2*100+I49) ->  | K50: =IF(K49="","",$B$2*100+K49) ->  | M50: =IF(M49="","",$B$2*100+M49) ->  | O50: =IF(O49="","",$B$2*100+O49) ->  | Q50: =IF(Q49="","",$B$2*100+Q49) ->  | S50: =IF(S49="","",$B$2*100+S49) -> 
C52: =F49 -> 03:45:00 | E52: ～ | F52: =IF(C52="","",C52+TIME(0,15,0)) -> 04:00:00
I53: =IF(I52="","",$B$2*100+I52) ->  | K53: =IF(K52="","",$B$2*100+K52) ->  | M53: =IF(M52="","",$B$2*100+M52) ->  | O53: =IF(O52="","",$B$2*100+O52) ->  | Q53: =IF(Q52="","",$B$2*100+Q52) ->  | S53: =IF(S52="","",$B$2*100+S52) -> 
C55: =F52 -> 04:00:00 | E55: ～ | F55: =IF(C55="","",C55+TIME(0,15,0)) -> 04:15:00
I56: =IF(I55="","",$B$2*100+I55) ->  | K56: =IF(K55="","",$B$2*100+K55) ->  | M56: =IF(M55="","",$B$2*100+M55) ->  | O56: =IF(O55="","",$B$2*100+O55) ->  | Q56: =IF(Q55="","",$B$2*100+Q55) ->  | S56: =IF(S55="","",$B$2*100+S55) -> 
C58: =F55 -> 04:15:00 | E58: ～ | F58: =IF(C58="","",C58+TIME(0,15,0)) -> 04:30:00
I59: =IF(I58="","",$B$2*100+I58) ->  | K59: =IF(K58="","",$B$2*100+K58) ->  | M59: =IF(M58="","",$B$2*100+M58) ->  | O59: =IF(O58="","",$B$2*100+O58) ->  | Q59: =IF(Q58="","",$B$2*100+Q58) ->  | S59: =IF(S58="","",$B$2*100+S58) -> 
C61: =F58 -> 04:30:00 | E61: ～ | F61: =IF(C61="","",C61+TIME(0,15,0)) -> 04:45:00
I62: =IF(I61="","",$B$2*100+I61) ->  | K62: =IF(K61="","",$B$2*100+K61) ->  | M62: =IF(M61="","",$B$2*100+M61) ->  | O62: =IF(O61="","",$B$2*100+O61) ->  | Q62: =IF(Q61="","",$B$2*100+Q61) ->  | S62: =IF(S61="","",$B$2*100+S61) -> 
C64: =F61 -> 04:45:00 | E64: ～ | F64: =IF(C64="","",C64+TIME(0,15,0)) -> 05:00:00
I65: =IF(I64="","",$B$2*100+I64) ->  | K65: =IF(K64="","",$B$2*100+K64) ->  | M65: =IF(M64="","",$B$2*100+M64) ->  | O65: =IF(O64="","",$B$2*100+O64) ->  | Q65: =IF(Q64="","",$B$2*100+Q64) ->  | S65: =IF(S64="","",$B$2*100+S64) -> 
